bitfinex-derivatives/quotes_SOLF0:USTF0_20241231
["timestamp","ask_amount","ask_price","bid_price","bid_amount"]
[1735658264028,3.38,197.48,197.38,19.71849981]
[1735658264335,19.71849981,197.55,197.38,19.71849981]
[1735658264336,19.71849981,197.55,197.38,306.71849981]
[1735658264533,3.38,197.54,197.38,306.71849981]
[1735658264736,1.6064,197.56,197.38,306.71849981]
[1735658265032,3.38,197.55,197.42,19.71849981]
[1735658265429,2.5352,197.51,197.48,2.5355]
[1735658265937,3.38,197.55,197.48,2.5355]
[1735658265938,2.535,197.52,197.48,2.5355]
[1735658266131,2.535,197.52,197.42,19.71849981]
[1735658266132,3.38,197.55,197.42,19.71849981]
[1735658266332,3.38,197.55,197.47,2.5356]
[1735658266537,3.38,197.55,197.42,19.71849981]
[1735658266840,3.38,197.55,197.45,2.5358]
[1735658267041,2.5351,197.52,197.42,19.71849981]
[1735658267340,3.38,197.55,197.42,19.71849981]
[1735658267542,2.5351,197.52,197.48,2.5355]
[1735658267837,3.38,197.55,197.42,19.71849981]
[1735658268044,2.5358,197.47,197.43,2.5361]
[1735658268237,3.38,197.49,197.43,2.5361]
[1735658269539,3.38,197.49,197.38,19.71849981]
[1735658270339,3.38,197.49,197.41,2.5364]
[1735658270739,3.38,197.49,197.37,3.0598]
[1735658271037,23.09849981,197.49,197.36,1.4849]
[1735658271243,1.5302,197.48,197.36,1.4849]
[1735658271442,19.71849981,197.45,197.36,1.4849]
[1735658271641,3.38,197.44,197.36,1.4849]
[1735658271843,3.38,197.44,197.31,3.0098]
[1735658272144,3.38,197.44,197.35,2.5372]
[1735658273146,2.5364,197.42,197.35,2.5372]
[1735658273444,3.38,197.44,197.35,2.5372]
[1735658273945,2.5367,197.4,197.35,2.5372]
[1735658274542,2.5368,197.38,197.32,1.5081]
[1735658275143,2.5368,197.38,197.33,2.5373]
[1735658275343,2.537,197.37,197.33,2.5373]
[1735658275739,3.38,197.39,197.32,1.5081]
[1735658275948,5.9167,197.39,197.35,2.5372]
[1735658276448,3.38,197.39,197.32,1.5081]
[1735658276746,2.5369,197.38,197.33,2.5374]
[1735658277046,3.38,197.39,197.33,2.5374]
[1735658277246,2.537,197.37,197.33,2.5374]
[1735658277650,2.537,197.37,197.32,1.5081]
[1735658277651,3.38,197.39,197.32,1.5081]
[1735658277850,2.5372,197.36,197.32,1.5081]
[1735658278043,3.38,197.39,197.32,1.5081]
[1735658278449,2.5371,197.36,197.32,1.5081]
[1735658280357,3.38,197.39,197.32,1.5081]
[1735658281053,15.72862239,197.39,197.29,2.5378]
[1735658281258,15.72862239,197.39,197.27,1.4905]
[1735658281754,12.34862239,197.39,197.27,1.4905]
[1735658281958,3.38,197.4,197.28,12.34862239]
[1735658282252,3.38,197.39,197.28,12.34862239]
[1735658282558,15.72862239,197.39,197.28,12.34862239]
[1735658283055,15.72862239,197.39,197.3,2.5378]
[1735658283363,15.72862239,197.39,197.28,12.34862239]
[1735658283659,3.38,197.4,197.28,12.34862239]
[1735658283957,2.5368,197.39,197.34,2.5372]
[1735658284153,1.5302,197.48,197.34,12.34862239]
[1735658284356,13.87882239,197.48,197.35,1.5576]
[1735658284558,3.38,197.47,197.35,4.5721]
[1735658284949,20.83770509,197.49,197.38,12.34862239]
[1735658285154,20.83770509,197.49,197.44,2.536]
[1735658285658,3.38,197.52,197.41,12.34862239]
[1735658286653,2.5353,197.5,197.46,2.5357]
[1735658286859,3.38,197.52,197.46,2.5357]
[1735658287258,2.5353,197.51,197.46,2.5357]
[1735658287856,2.5353,197.5,197.46,2.5357]
[1735658288160,3.38,197.52,197.41,12.34862239]
[1735658288356,3.38,197.52,197.35,4.5721]
[1735658288357,2.5356,197.48,197.39,3.38]
[1735658288561,3.38,197.52,197.39,3.38]
[1735658288860,2.5359,197.46,197.37,306.73498864]
[1735658289057,3.38,197.52,197.37,306.73498864]
[1735658290465,2.5355,197.49,197.41,2.5364]
[1735658290657,3.38,197.52,197.37,306.73498864]
[1735658292065,2.5357,197.47,197.37,19.73498864]
[1735658292363,3.38,197.52,197.37,19.73498864]
[1735658292555,2.5355,197.48,197.44,2.536]
[1735658292757,3.38,197.52,197.37,306.73498864]
[1735658293858,2.5357,197.47,197.43,2.5361]
[1735658294162,2.5357,197.47,197.37,19.73498864]
[1735658294370,2.5357,197.47,197.43,2.5361]
[1735658294557,3.38,197.52,197.37,19.73498864]
[1735658294757,19.73498864,197.5,197.35,294.9321]
[1735658294971,19.73498864,197.5,197.35,291.5721]
[1735658295464,2.5361,197.44,197.35,291.5721]
[1735658295667,3.36,197.45,197.35,4.5721]
[1735658297165,2.5365,197.41,197.37,2.5369]
[1735658297566,2.5368,197.39,197.35,7.1092]
[1735658297865,3.36,197.4,197.35,7.1092]
[1735658298066,3.36,197.4,197.35,4.5721]
[1735658298660,2.5371,197.36,197.35,1.5576]
[1735658298860,3.36,197.4,197.28,1.5781]
[1735658299458,19.73498864,197.38,197.28,1.5781]
[1735658299862,2.5375,197.33,197.28,4.1162]
[1735658300168,3.38,197.33,197.28,1.5781]
[1735658300569,3.38,197.33,197.31,2.5377]
[1735658301168,3.38,197.33,197.28,1.5781]
[1735658301766,3.38,197.33,197.32,2.5376]
[1735658302163,2.5374,197.34,197.3,2.5377]
[1735658302363,3.38,197.37,197.28,1.5781]
[1735658302769,3.38,197.37,197.26,3.1269]
[1735658303370,2.5378,197.31,197.26,5.6652]
[1735658303571,3.38,197.32,197.22,1.4608]
[1735658303767,3.38,197.32,197.23,1.57]
[1735658303964,2.5379,197.3,197.23,1.57]
[1735658304573,2.5379,197.3,197.26,2.5383]
[1735658304974,5.9177,197.32,197.23,1.57]
[1735658305171,19.73498864,197.4,197.24,1.5317]
[1735658305474,3.38,197.39,197.24,1.5317]
[1735658305674,3.38,197.39,197.32,2.5375]
[1735658305869,19.73498864,197.4,197.25,3.38]
[1735658306177,3.38,197.4,197.25,3.38]
[1735658306471,2.5368,197.39,197.34,2.5372]
[1735658306672,2.5368,197.39,197.25,290.38]
[1735658307373,3.38,197.4,197.25,290.38]
[1735658307968,2.5368,197.38,197.25,290.38]
[1735658308174,3.38,197.4,197.25,290.38]
[1735658309369,2.5369,197.37,197.25,290.38]
[1735658309882,2.5372,197.36,197.32,2.5375]
[1735658310077,2.5372,197.36,197.26,3.38]
[1735658310376,2.5372,197.36,197.27,12.34908995]
[1735658310573,3.38,197.4,197.27,299.34908995]
[1735658310974,2.5368,197.39,197.35,2.5371]
[1735658311273,2.5368,197.39,197.27,299.34908995]
[1735658311475,3.38,197.42,197.3,12.34908995]
[1735658311676,5.9164,197.42,197.31,4.9604]
[1735658311876,3.38,197.42,197.31,4.9604]
[1735658312072,3.38,197.42,197.32,3.0845]
[1735658312279,2.5364,197.41,197.32,3.0845]
[1735658312778,2.5364,197.41,197.37,2.5368]
[1735658314081,2.5364,197.41,197.32,3.0845]
[1735658314283,2.5364,197.41,197.38,2.5368]
[1735658315488,5.9163,197.43,197.39,2.5366]
[1735658315680,2.5363,197.43,197.33,12.34908995]
[1735658316489,2.5363,197.43,197.4,2.5365]
[1735658317786,2.5363,197.42,197.32,15.43358995]
[1735658318084,2.5362,197.43,197.4,2.5365]
[1735658318787,3.38,197.45,197.4,2.5365]
[1735658319089,12.34908995,197.47,197.42,2.5362]
[1735658319485,2.536,197.45,197.41,2.5363]
[1735658319889,12.34908995,197.47,197.35,3.38]
[1735658320083,2.5363,197.43,197.35,3.38]
[1735658320388,12.34908995,197.47,197.35,3.38]
[1735658320588,2.5362,197.44,197.35,3.38]
[1735658320784,3.38,197.47,197.42,2.5362]
[1735658321483,2.5358,197.46,197.42,2.5362]
[1735658321883,3.38,197.47,197.4,2.5364]
[1735658322083,2.5361,197.44,197.4,2.5364]
[1735658322485,2.5361,197.44,197.41,2.5364]
[1735658322890,3.38,197.47,197.37,12.34908995]
[1735658323083,12.34908995,197.53,197.4,12.34908995]
[1735658323284,12.34908995,197.53,197.41,4.6694]
[1735658323486,2.5351,197.52,197.41,4.6694]
[1735658323692,2.5351,197.52,197.48,2.5354]
[1735658324682,2.5352,197.51,197.48,2.5354]
[1735658325085,3.36,197.53,197.44,2.536]
[1735658325282,12.34908995,197.5,197.41,4.6694]
[1735658325886,2.5359,197.45,197.41,7.2057]
[1735658326085,3.36,197.47,197.41,1.5839]
[1735658326389,15.70908995,197.47,197.35,1.4954]
[1735658326588,12.34908995,197.44,197.35,3.0872]
[1735658328386,2.5368,197.39,197.35,3.0872]
[1735658329085,3.36,197.4,197.36,2.537]
[1735658329884,15.70908995,197.44,197.35,3.0872]
[1735658330592,2.5363,197.42,197.38,2.5367]
[1735658331194,3.36,197.44,197.35,3.0872]
[1735658331984,2.5362,197.43,197.39,2.5366]
[1735658333895,2.5362,197.43,197.4,2.5365]
[1735658334797,5.8961,197.44,197.4,2.5365]
[1735658335596,5.8961,197.44,197.37,2.5368]
[1735658335799,5.8961,197.44,197.35,3.0872]
[1735658336096,2.5362,197.43,197.35,3.0872]
[1735658336891,2.5362,197.43,197.4,2.5365]
[1735658337293,5.8961,197.44,197.41,2.5364]
[1735658338497,12.34908995,197.5,197.44,2.536]
[1735658338798,20.83770509,197.52,197.39,3.36]
[1735658338998,2.5354,197.49,197.46,2.5357]
[1735658339190,24.19770509,197.52,197.39,3.36]
[1735658339594,2.5354,197.5,197.46,2.5357]
[1735658339799,2.5354,197.5,197.39,3.36]
[1735658340492,2.5351,197.52,197.41,12.34908995]
[1735658340797,3.36,197.53,197.42,288.5012]
[1735658340998,3.36,197.53,197.43,1.5041]
[1735658341194,5.895,197.53,197.49,2.5353]
[1735658341394,3.36,197.56,197.44,17.18718995]
[1735658341797,2.5348,197.54,197.51,2.5351]
[1735658342300,2.5348,197.54,197.5,2.5352]
[1735658343103,2.5348,197.54,197.44,17.18718995]
[1735658343401,2.5348,197.54,197.51,2.5351]
[1735658344295,12.34908995,197.59,197.51,2.5351]
[1735658344501,2.5346,197.56,197.52,2.535]
[1735658346104,2.535,197.53,197.49,2.5353]
[1735658346305,2.535,197.53,197.44,300.82718995]
[1735658346306,12.34908995,197.56,197.44,288.4781]
[1735658346500,12.34908995,197.53,197.44,288.4781]
[1735658346804,12.34908995,197.53,197.46,2.5357]
[1735658347103,3.36,197.52,197.46,2.5357]
[1735658347299,2.5352,197.51,197.46,2.5357]
[1735658347498,3.36,197.52,197.46,2.5357]
[1735658348594,3.36,197.52,197.44,288.4781]
[1735658348796,2.5352,197.51,197.47,2.5356]
[1735658349204,2.5348,197.54,197.5,2.5352]
[1735658349505,2.5348,197.54,197.44,1.4781]
[1735658349700,15.70908995,197.56,197.44,13.82718995]
[1735658349899,12.34908995,197.59,197.47,12.34908995]
[1735658350201,3.36,197.59,197.47,12.34908995]
[1735658351003,3.36,197.59,197.55,2.5345]
[1735658351502,12.34908995,197.59,197.47,12.34908995]
[1735658351698,12.34908995,197.59,197.47,15.70908995]
[1735658352993,12.34908995,197.59,197.54,2.5347]
[1735658353194,12.34908995,197.59,197.47,302.70908995]
[1735658354603,12.34908995,197.59,197.54,2.5347]
[1735658355400,12.34908995,197.59,197.5,2.5352]
[1735658355605,12.34908995,197.59,197.47,287.0]
[1735658356407,12.34908995,197.59,197.5,2.5353]
[1735658358701,12.34908995,197.56,197.5,2.5353]
[1735658360701,3.36,197.6,197.47,299.34908995]
[1735658362002,3.36,197.6,197.54,2.5347]
[1735658362203,12.34908995,197.62,197.54,2.5347]
[1735658362403,3.36,197.61,197.54,2.5347]
[1735658362606,3.36,197.61,197.52,2.535]
[1735658363507,3.36,197.6,197.53,2.5349]
[1735658364103,3.36,197.6,197.49,3.36]
[1735658364303,3.36,197.6,197.54,2.5347]
[1735658364606,3.36,197.6,197.5,12.34908995]
[1735658365104,12.34908995,197.62,197.54,2.5347]
[1735658365307,3.36,197.61,197.54,2.5347]
[1735658366900,3.36,197.61,197.53,2.5348]
[1735658367303,3.36,197.61,197.52,1.607]
[1735658367504,3.36,197.61,197.54,2.5347]
[1735658368500,3.36,197.61,197.55,2.5346]
[1735658369702,12.34908995,197.65,197.57,2.5343]
[1735658369908,3.36,197.64,197.57,2.5343]
[1735658371714,12.34908995,197.65,197.57,2.5343]
[1735658371906,20.83770509,197.69,197.61,2.5338]
[1735658372102,20.83770509,197.69,197.59,12.34908995]
[1735658372303,23.37060509,197.69,197.64,2.5334]
[1735658372510,20.83770509,197.69,197.64,2.5334]
[1735658372706,20.83770509,197.69,197.6,4.5779]
[1735658373010,58.92721358,197.7,197.61,2.5338]
[1735658373011,15.70908995,197.7,197.61,2.5338]
[1735658373315,2.5331,197.67,197.6,4.5779]
[1735658373613,15.70908995,197.7,197.62,2.5337]
[1735658374206,2.533,197.68,197.6,4.5779]
[1735658374413,12.34908995,197.73,197.6,4.5779]
[1735658374606,15.70908995,197.73,197.61,3.36]
[1735658375008,12.34908995,197.73,197.62,12.34908995]
[1735658375327,20.83770509,197.74,197.62,12.34908995]
[1735658375522,2.5327,197.71,197.66,2.5331]
[1735658375721,2.5327,197.71,197.62,12.34908995]
[1735658375922,2.5327,197.71,197.62,299.34908995]
[1735658376124,2.5327,197.71,197.67,2.533]
[1735658376921,2.5327,197.7,197.67,2.533]
[1735658377617,2.5326,197.71,197.67,2.533]
[1735658377818,12.34908995,197.76,197.69,2.5328]
[1735658378017,2.5322,197.75,197.65,302.70908995]
[1735658378221,24.19770509,197.81,197.68,12.34908995]
[1735658378423,12.34908995,197.82,197.72,2.5323]
[1735658378619,12.34908995,197.82,197.69,4.4746]
[1735658378824,2.5318,197.78,197.7,3.36]
[1735658379329,2.5315,197.8,197.7,3.36]
[1735658379626,12.34908995,197.82,197.75,2.532]
[1735658380228,12.34908995,197.82,197.7,290.36]
[1735658380424,2.5316,197.79,197.74,2.5322]
[1735658382937,12.34908995,197.82,197.7,287.0]
[1735658383132,2.5319,197.76,197.71,2.5326]
[1735658383336,12.34908995,197.79,197.69,4.4746]
[1735658383538,3.36,197.78,197.69,4.4746]
[1735658384437,2.5323,197.74,197.69,7.0074]
[1735658385427,3.36,197.78,197.69,7.0074]
[1735658385631,2.5323,197.73,197.69,7.0074]
[1735658385936,3.36,197.78,197.69,4.4746]
[1735658386134,2.5327,197.7,197.69,4.4746]
[1735658386339,12.34908995,197.76,197.63,3.36]
[1735658386537,12.34908995,197.76,197.65,2.5332]
[1735658388035,12.34908995,197.76,197.63,1.5279]
[1735658388233,12.34908995,197.76,197.63,3.0688]
[1735658388633,2.5327,197.7,197.63,3.0688]
[1735658389139,2.5327,197.7,197.65,2.5332]
[1735658389936,12.34908995,197.76,197.65,2.5332]
[1735658390141,2.5328,197.69,197.65,2.5332]
[1735658390735,2.5328,197.69,197.63,3.0688]
[1735658391041,2.5328,197.69,197.66,2.5332]
[1735658391540,12.34908995,197.76,197.67,2.5331]
[1735658391739,12.34908995,197.73,197.63,3.0688]
[1735658391937,15.70908995,197.73,197.63,3.0688]
[1735658392140,2.5335,197.65,197.63,3.0688]
[1735658392637,15.70908995,197.73,197.63,3.0688]
[1735658392944,2.5327,197.7,197.63,3.0688]
[1735658393141,15.70908995,197.73,197.63,3.0688]
[1735658393543,15.70908995,197.73,197.63,1.5279]
[1735658393843,2.5333,197.66,197.63,1.5279]
[1735658394539,2.5327,197.7,197.63,1.5279]
[1735658394729,15.70908995,197.73,197.63,1.5279]
[1735658395140,12.34908995,197.7,197.56,17.25148995]
[1735658395341,12.34908995,197.7,197.59,2.5341]
[1735658396441,12.34908995,197.7,197.6,2.5339]
[1735658396641,12.34908995,197.7,197.57,1.5074]
[1735658397342,2.5331,197.67,197.63,2.5335]
[1735658398144,12.34908995,197.7,197.63,2.5335]
[1735658399039,2.5331,197.67,197.63,2.5335]
[1735658401445,12.34908995,197.7,197.57,1.5074]
[1735658401641,12.34908995,197.7,197.58,3.36]
[1735658402149,2.5336,197.63,197.59,2.534]
[1735658402349,2.5336,197.63,197.59,10.41480442]
[1735658405451,20.83770509,197.75,197.57,1.5074]
[1735658405452,7.88080442,197.7,197.61,7.88080442]
[1735658405751,7.88080442,197.72,197.64,7.88080442]
[1735658405948,7.88080442,197.72,197.66,7.88080442]
[1735658407046,2.5327,197.7,197.67,2.533]
[1735658407248,7.88080442,197.72,197.67,2.533]
[1735658408050,7.88080442,197.72,197.66,7.88080442]
[1735658408345,15.66542652,197.76,197.62,12.30542652]
[1735658408756,15.66542652,197.76,197.63,1.5542]
[1735658409443,2.5326,197.71,197.68,2.5329]
[1735658409647,15.66542652,197.76,197.64,1.5108]
[1735658410142,2.5325,197.72,197.68,2.5328]
[1735658411355,12.30542652,197.73,197.65,1.4765]
[1735658411850,2.5324,197.73,197.7,2.5327]
[1735658412049,20.83770509,197.81,197.66,3.36]
[1735658412253,12.30542652,197.8,197.66,290.36]
[1735658412547,33.14313161,197.8,197.66,290.36]
[1735658412752,33.14313161,197.8,197.68,299.30542652]
[1735658413147,2.5317,197.79,197.68,299.30542652]
[1735658413855,12.30542652,197.83,197.68,299.30542652]
[1735658414151,2.5317,197.78,197.74,2.5321]
[1735658414345,20.83770509,197.84,197.74,12.30542652]
[1735658414543,20.83770509,197.84,197.75,1.4511]
[1735658414749,2.5312,197.82,197.75,1.4511]
[1735658415049,1.4517,197.85,197.75,1.4511]
[1735658415649,2.5312,197.82,197.75,1.4511]
[1735658416653,2.5312,197.82,197.78,2.5316]
[1735658417052,2.5311,197.83,197.78,2.5316]
[1735658417449,12.30542652,197.83,197.75,1.4511]
[1735658417754,12.30542652,197.8,197.74,287.0]
[1735658417948,12.30542652,197.77,197.66,3.34]
[1735658418154,2.5323,197.74,197.69,2.5328]
[1735658418558,15.64542652,197.77,197.64,300.78992652]
[1735658418749,2.5325,197.72,197.64,300.78992652]
[1735658419157,2.5325,197.72,197.67,2.533]
[1735658419656,2.5325,197.72,197.64,300.78992652]
[1735658420155,2.5323,197.74,197.64,300.78992652]
[1735658420747,2.5321,197.75,197.71,2.5325]
[1735658420947,15.64542652,197.77,197.71,2.5325]
[1735658421253,2.5323,197.74,197.64,300.78992652]
[1735658421458,15.64542652,197.77,197.65,3.34]
[1735658422447,2.5326,197.72,197.67,2.533]
[1735658422849,12.30542652,197.74,197.67,2.533]
[1735658424359,12.30542652,197.74,197.64,1.4845]
[1735658424548,12.30542652,197.74,197.64,4.0179]
[1735658424753,12.30542652,197.71,197.58,299.30542652]
[1735658424955,3.34,197.7,197.58,15.64542652]
[1735658425758,2.5331,197.68,197.58,15.64542652]
[1735658426360,2.5331,197.68,197.64,2.5334]
[1735658427856,3.34,197.7,197.58,302.64542652]
[1735658428150,2.5328,197.69,197.65,2.5333]
[1735658428350,15.64542652,197.74,197.64,3.34]
[1735658428562,15.64542652,197.74,197.65,1.4575]
[1735658429059,2.5326,197.71,197.67,2.533]
[1735658430065,12.30542652,197.77,197.65,1.4575]
[1735658430359,2.5318,197.77,197.73,2.5322]
[1735658431061,20.83770509,197.8,197.74,2.5322]
[1735658431260,12.30542652,197.81,197.74,2.5322]
[1735658431567,12.30542652,197.81,197.7,2.9507]
[1735658431865,12.30542652,197.81,197.76,2.5319]
[1735658432255,2.5317,197.78,197.7,289.9507]
[1735658432863,12.30542652,197.81,197.7,289.9507]
[1735658433062,2.5316,197.79,197.75,2.532]
[1735658433266,2.5316,197.79,197.7,289.9507]
[1735658433267,12.30542652,197.81,197.7,289.9507]
[1735658433456,2.5317,197.78,197.74,2.5321]
[1735658433762,2.5317,197.78,197.7,289.9507]
[1735658434567,2.5313,197.81,197.7,302.25612652]
[1735658436167,2.5313,197.81,197.77,2.5317]
[1735658436669,2.5313,197.81,197.78,2.5317]
[1735658437168,3.34,197.82,197.78,2.5317]
[1735658437568,12.30542652,197.84,197.78,2.5317]
[1735658437869,33.14313161,197.87,197.8,2.5314]
[1735658438071,3.34,197.86,197.8,2.5314]
[1735658438764,2.531,197.84,197.8,2.5314]
[1735658438971,3.34,197.86,197.74,288.4824]
[1735658439170,12.30542652,197.84,197.74,288.4824]
[1735658439470,12.30542652,197.84,197.74,1.4824]
[1735658439670,12.30542652,197.81,197.74,1.4824]
[1735658439865,15.64542652,197.81,197.7,2.9507]
[1735658440170,12.30542652,197.75,197.67,3.34]
[1735658440470,12.30542652,197.75,197.66,1.5196]
[1735658440968,12.30542652,197.75,197.66,4.0527]
[1735658441271,12.30542652,197.75,197.66,1.5196]
[1735658441771,2.5324,197.73,197.67,2.5331]
[1735658441976,12.30542652,197.72,197.67,2.5331]
[1735658442471,12.30542652,197.75,197.67,2.5331]
[1735658442873,12.30542652,197.75,197.66,1.5196]
[1735658443070,3.34,197.76,197.66,1.5196]
[1735658443667,2.5324,197.73,197.69,2.5327]
[1735658443868,3.34,197.76,197.66,1.5196]
[1735658444277,3.34,197.76,197.69,2.5327]
[1735658444278,2.5323,197.74,197.69,2.5327]
[1735658445680,5.872,197.76,197.71,2.5325]
[1735658445867,2.532,197.76,197.71,2.5325]
[1735658446073,12.30542652,197.81,197.68,290.34]
[1735658446275,12.30542652,197.81,197.74,2.5322]
[1735658446276,2.5317,197.78,197.74,2.5322]
[1735658447179,2.5319,197.77,197.73,2.5323]
[1735658447375,3.34,197.8,197.73,2.5323]
[1735658447579,3.34,197.8,197.69,15.27192652]
[1735658447777,2.5317,197.78,197.74,2.5322]
[1735658447987,15.64542652,197.82,197.74,2.5322]
[1735658448285,2.5318,197.77,197.73,2.5323]
[1735658450187,12.30542652,197.82,197.69,302.27192652]
[1735658450386,3.34,197.84,197.69,302.27192652]
[1735658450686,2.5313,197.81,197.72,12.30542652]
[1735658450878,2.5313,197.81,197.73,3.34]
[1735658451183,2.5315,197.8,197.76,2.5319]
[1735658451379,2.5315,197.8,197.73,3.34]
[1735658451380,7.63922978,197.84,197.73,3.34]
[1735658451580,4.2937236,197.84,197.73,3.34]
[1735658451781,2.5316,197.79,197.73,3.34]
[1735658451982,2.5316,197.79,197.74,1.4469]
[1735658452181,20.10948179,197.84,197.74,1.4469]
[1735658452383,2.5315,197.8,197.76,2.5318]
[1735658453283,7.63922978,197.84,197.74,1.4469]
[1735658453481,15.64542652,197.85,197.79,2.5315]
[1735658453482,2.5313,197.82,197.79,2.5315]
[1735658455385,2.5311,197.83,197.79,2.5315]
[1735658455781,12.30542652,197.85,197.81,2.5313]
[1735658455980,2.5309,197.84,197.81,2.5313]
[1735658457992,4.29712918,197.86,197.81,2.5313]
[1735658458293,20.12289404,197.87,197.81,2.5313]
[1735658459089,2.5312,197.82,197.75,3.34]
[1735658459294,11.94127559,197.87,197.75,3.34]
[1735658460082,11.94127559,197.87,197.74,1.4469]
[1735658460287,12.30542652,197.85,197.74,1.4469]
[1735658460484,12.30542652,197.82,197.74,1.4469]
[1735658460689,2.532,197.76,197.74,1.4469]
[1735658460890,12.30542652,197.76,197.63,12.30542652]
[1735658461092,12.30542652,197.76,197.63,16.76122652]
[1735658463098,2.5322,197.74,197.69,2.5327]
[1735658463294,12.30542652,197.8,197.69,12.30542652]
[1735658463492,2.5316,197.79,197.74,2.5322]
[1735658463692,3.34,197.81,197.69,12.30542652]
[1735658465204,2.532,197.76,197.71,2.5325]
[1735658465396,15.64542652,197.81,197.69,3.34]
[1735658465795,2.5317,197.79,197.75,2.5319]
[1735658465995,3.34,197.83,197.71,4.5729]
[1735658466603,2.5315,197.8,197.76,2.5319]
[1735658466994,2.5316,197.79,197.76,2.5319]
[1735658467195,3.34,197.83,197.76,2.5319]
[1735658467800,2.5313,197.81,197.76,2.5319]
[1735658468202,3.34,197.83,197.76,2.5319]
[1735658468505,3.34,197.83,197.74,2.5321]
[1735658468900,2.5316,197.79,197.74,2.5321]
[1735658469402,2.5316,197.79,197.71,4.5729]
[1735658469603,12.30542652,197.84,197.71,4.5729]
[1735658469999,12.30542652,197.84,197.73,12.30542652]
[1735658470202,2.5311,197.83,197.79,2.5315]
[1735658470703,2.5309,197.84,197.74,290.34]
[1735658471005,20.83770509,197.86,197.74,290.34]
[1735658471201,2.5312,197.82,197.79,2.5315]
[1735658471593,11.94727189,197.86,197.79,2.5315]
[1735658472303,2.531,197.84,197.8,2.5314]
[1735658473499,11.94727189,197.86,197.74,290.34]
[1735658473803,11.94727189,197.86,197.78,2.5317]
[1735658474002,12.30542652,197.84,197.74,290.34]
[1735658474198,2.5316,197.79,197.74,290.34]
[1735658474599,11.94727189,197.83,197.74,290.34]
[1735658474801,12.30542652,197.78,197.71,1.5163]
[1735658475000,3.34,197.77,197.65,4.8053]
[1735658475195,12.30542652,197.75,197.65,4.8053]
[1735658475397,2.5327,197.71,197.67,2.533]
[1735658476400,12.30542652,197.75,197.65,4.8053]
[1735658476600,12.30542652,197.72,197.64,3.026]
[1735658476795,3.34,197.71,197.64,3.026]
[1735658477000,3.34,197.71,197.64,1.5282]
[1735658477305,2.533,197.68,197.64,1.5282]
[1735658477502,2.533,197.68,197.62,287.0]
[1735658477698,2.533,197.68,197.59,12.30542652]
[1735658477898,2.533,197.68,197.63,2.5336]
[1735658478397,3.34,197.71,197.61,2.5337]
[1735658479007,3.34,197.71,197.58,1.4977]
[1735658479411,12.30542652,197.69,197.58,1.4977]
[1735658479808,2.5334,197.65,197.6,2.5339]
[1735658480106,2.5334,197.65,197.58,1.4977]
[1735658480607,2.5334,197.65,197.6,2.5339]
[1735658481001,2.5334,197.65,197.58,1.4977]
[1735658481202,2.5334,197.65,197.61,2.5339]
[1735658481405,2.5332,197.66,197.61,2.5339]
[1735658481709,12.30542652,197.69,197.58,1.4977]
[1735658481908,1.4897,197.73,197.58,1.4977]
[1735658481909,33.14313161,197.75,197.62,12.30542652]
[1735658482109,20.83770509,197.75,197.65,12.30542652]
[1735658482408,20.83770509,197.75,197.71,2.5325]
[1735658482611,23.36970509,197.76,197.71,2.5325]
[1735658482809,20.83770509,197.76,197.7,2.5327]
[1735658483012,20.83770509,197.76,197.66,4.452]
[1735658483406,20.83770509,197.76,197.66,6.9852]
[1735658483603,12.30542652,197.78,197.66,4.452]
[1735658484111,24.22644984,197.78,197.68,2.5329]
[1735658484313,12.30542652,197.78,197.68,2.5329]